{"text_format":"1","workbook":"xlsx","n_sheets":12,"sheets":["3","4","5","6","7","8","9","10","11","12","13","14"],"not_rendered":{"charts":0,"images":0,"macros":0,"external_links":0,"defined_names":2,"comments":0,"pivot_tables":0},"unopened":[],"bounds":{"document_bytes":16777216,"sheet_cells":100000,"rows_first":2000,"rows_last":500,"rows_between":2000,"halvings":0,"cell_chars":16384,"cell_head_chars":4096},"cells_cut":0,"cells_raw":0,"read":"whole","date_system":"1900"}

{"sheet":"3","index":0,"n_rows":29,"n_cols":15,"rows_kept":29,"cut":false,"hidden":false,"merged":[[0,0,0,14],[2,0,7,0],[2,1,7,1],[2,2,7,2],[2,3,7,3],[2,14,7,14],[3,5,7,5],[2,4,7,4],[2,5,2,13],[4,7,7,7],[4,8,7,8],[24,0,24,3],[3,6,3,13],[4,6,7,6],[4,9,7,9],[4,12,7,12],[4,13,7,13],[5,10,7,10]]}
["Limity wydatków na wieloletnie przedsięwzięcia planowane do poniesienia w 2026 roku"]
[]
["Lp.","Dział","Rozdz.","Nazwa przedsięwzięcia","Łączne nakłady finansowe","Planowane wydatki",null,null,null,null,null,null,null,null,"Jednostka org. realizująca zadanie lub koordynująca program"]
[null,null,null,null,null,"rok budżetowy 2026 (7+8+9+10+12+13)","w tym źródła finansowania"]
[null,null,null,null,null,null,"dochody własne jst","niewykorzystane środki pieniężne na r-ku bieżącym budżetu określone w odrębnych ustawach     § 905","przychody wynikające z rozliczenia środkówokreśl.w art. 5 ust.1 pkt 2 u.f.p i dotacji na realizację przedsięwz.finans.z udziałem tych środków § 906","kredyty\ni pożyczki","w tym:",null,"dotacje i środki pochodzące z innych  źr.*","środki wymienione\nw art. 5 ust. 1 pkt 2 i 3 u.f.p."]
[null,null,null,null,null,null,null,null,null,null,"kredyty i pożyczki zaciągnięte na realizację zadania pod refundację wydatków"]
[]
[]
[1,2,3,4,5,6,7,8,9,10,11,null,12,13,14]
[null,null,null,"wydatki bieżące",{"$f":"SUM(E11)","v":88215.5},{"$f":"SUM(F11)","v":31252.720000000001},0,0,31252.720000000001,0,0,0,0,0]
[1,720,72095,"Projekt Cyberbezpieczny Samorząd",88215.5,31252.720000000001,null,null,31252.720000000001,null,null,null,null,null,"Urząd Gminy"]
[null,null,null,"wydatki majątkowe",{"$f":"SUM(E13:E24)","v":36581233.32},{"$f":"SUM(F13:F24)","v":16023670.02},1686365,0,205455.02,2047500,0,0,0,12084350]
[1,600,60016,"Budowa drogi w miejscowości Występa",200000,10000,10000,null,null," ",null,null,null,null,"Urząd Gminy"]
[2,600,60016,"Budowa drogi dojazdowej do zbiornika wodnego Jaśle",6807162.1200000001,550000,null,null,null,550000,null,null,null,null,"Urząd Gminy"]
[3,600,60016,"Budowa drogi w miejscowości Podzagnańszcze Dołki",380000,48000,48000,null,null,null,null,null,null,null,"Urząd Gminy"]
[4,600,60016,"Budowa drogi Ostrów",600000,40000,40000,null,null,null,null,null,null,null,"Urząd Gminy"]
[5,600,60016,"Modernizacja drogi w miejscowości Jęgrzna",400000,18000,18000,null,null,null,null,null,null,null,"Urząd Gminy"]
[6,630,63095,"Wzmocnienie potencjału gmin Związku Gmin Gór Świętokrzyskich w zakresie rekreacyjno -sportowej poprzez zagospodarowanie południowej strony zbiornika Jaśle",60000,60000,null,null,null,60000,null,null,null,null,"ZGGŚ"]
[7,700,70095,"Przebudowa, modernizacja i dostosowanie budynku do pełnienia funkcji \"Centrum dziedzictwa i edukacji kreatywnej w Zaleziance\"",6000000,750000,null,null,null,null,null,"B",null,750000,"Urząd Gminy"]
[8,720,72095,"Projekt Cyberbezpieczny Samorząd",318249.5,205455.02,null,null,205455.02,null,null,null,null,null,"Urząd Gminy"]
[9,900,90001,"Rozbudowa istniejącej oczyszczalni ścieków w Kamionkach wraz z modernizacją części osadowej",21445821.699999999,14297215,1525365,null,null,1437500,null,"B",null,11334350,"Urząd Gminy"]
[10,900,90015,"Budowa oświetlenia Gózd",250000,15000,15000,null,null,null,null,null,null,null,"Urząd Gminy"]
[11,900,90015,"Budowa oświetlenia Klonów",50000,15000,15000,null,null,null,null,null,null,null,"Urząd Gminy"]
[12,900,90015,"Budowa oświetlenia Podzagnańszcze",70000,15000,15000,null,null,null,null,null,null,null,"Urząd Gminy"]
["Ogółem",null,null,null,{"$f":"SUM(E10+E12)","v":36669448.82},{"$f":"SUM(F10+F12)","v":16054922.74},1686365,0,236707.74,2047500,0,0,0,12084350,{"$f":"SUM(O12)","v":0}]
[]
["A.        Dotacje i środki z budżetu państwa (np. od Wojewody, MEN)"]
["B.        Środki i dotacje otrzymane od innych jst oraz innych jednostek zaliczanych do sektora finansów publicznych"]
["C.        Inne źródła"]

{"sheet":"4","index":1,"n_rows":23,"n_cols":13,"rows_kept":23,"cut":false,"hidden":false,"merged":[[6,8,8,8],[5,6,8,6],[9,9,9,10],[12,1,12,5],[1,0,1,12],[3,0,8,0],[3,1,8,1],[3,2,8,2],[3,3,8,3],[3,4,3,11],[3,12,8,12],[4,4,8,4],[4,5,4,11],[5,9,8,10],[5,7,8,7],[5,11,8,11],[5,5,8,5]]}
[]
["Zadania inwestycyjne roczne w 2026 r."]
[null,null,null,null,null,null,null,null,null,null,null,null,"w złotych"]
["Lp.","Dział","Rozdz.","Nazwa zadania inwestycyjnego","Planowane wydatki",null,null,null,null,null,null,null,"Jednostka org. realizująca zadanie lub koordynująca program"]
[null,null,null,null,"rok budżetowy 2026 (6+7+8+9+10+11)","w tym źródła finansowania"]
[null,null,null,null,null,"dochody własne jst","niewykorzystane środki pieniężne na r-ku bieżącym budżetu określone w odrębnych ustawach            § 905","kredyty\ni pożyczki","w tym:","dotacje i środki pochodzące\nz innych  źr.*",null,"środki wymienione\nw art. 5 ust. 1 pkt 2 i 3 u.f.p."]
[null,null,null,null,null,null,null,null,"kredyty i pożyczki zaciągnięte na realizację zadania pod refundację wydatków"]
[]
[]
[1,2,3,4,5,6,7,8,9,10,null,11,12]
[1,700,70095,"Zagospodarowanie otoczenia turystycznego w miejscowości Klonów",150000,23000,null,null,null,"C",127000,null,"Stowarzyszenie            LGD Bieliny"]
[null,null,null,"Ogółem",{"$f":"SUM(E11:E11)","v":150000},23000,0,0,0,0,127000,0]
[]
[null,"A.        Dotacje i środki z budżetu państwa (np. od Wojewody, MEN)"]
[null,"B.        Środki i dotacje otrzymane od innych jst oraz innych jednostek zaliczanych do sektora finansów publicznych"]
[null,"C.        Inne źródła"]
[]
[]
[]
[]
[]
[]
[null,null,null,null,null,null,null,"       "]

{"sheet":"5","index":2,"n_rows":42,"n_cols":4,"rows_kept":42,"cut":false,"hidden":false,"merged":[[7,0,7,1],[27,0,27,1],[0,0,0,3],[3,0,5,0],[3,1,5,1],[3,2,5,2],[3,3,5,3]]}
["Przychody i rozchody budżetu w 2026 r."]
[]
[null,null,null,"w złotych"]
["Lp.","Treść","Klasyfikacja\n§","Kwota\n"]
[]
[]
[1,2,3,4]
["Przychody ogółem:",null,null,{"$f":"SUM(D9:D27)","v":4907551.01}]
["1.","Kredyty zaciągnięte na rynku krajowym, w tym:","§ 952",3500000]
["1.1","zaciągnięte w związku z umową zawartą z podmiotem dysponującym środkami pochodzącymi z budżetu U.E.","§ 952"]
["2.","Pożyczki zaciągnięte na rynku krajowym","§ 952"]
["3.","Przychody z zaciągniętych pożyczek na finansowanie zadań realizowanych z udziałem środków pochodzących z budżetu U.E.","§ 903"]
["4. ","Przychody ze spłat pożyczek udzielonych na finansowanie zadań realizowanych z udziałem środków pochodzących z budżetu U.E.","§ 902"]
["5. ","Pożyczki i kredyty zaciągnięte na rynku zagranicznym, w tym:","§ 953"]
["5.1","zaciągnięte w związku z umową zawartą z podmiotem dysponującym środkami pochodzącymi z budżetu U.E."]
["6.","Papiery wartościowe ( obligacje) których zbywalność jest ograniczona, w tym:","§ 931"]
["6.1","emitowane w związku z umową zawartą z podmiotami dysponującymi środkami pochodzącymi z budżetu U.E.","§ 931"]
["7.","Papiery wartościowe ( obligacje) dopuszczone do obrotu zorganizowanego, czyli takie, dla których istnieje płynny rynek wtórny","§ 931"]
["8.","Przychody z tytułu zaciągniętych pożyczek i kredytów oraz wyemitowanych papierów wartościowych na spłatę wcześniej zaciągniętych zobowiązań","§ 907"]
["9.","Nadwyżka z lat ubiegłych ( pomniejszona o środki , o których mowa w art. 217 ust.2 pkt 8 u.f.p)","§ 957"]
["10.","Wolne środki art. 217 ust.2 pkt.6 u.f.p","§ 950",935601]
["11.","Spłata pożyczek udzielonych","§ 951"]
["12.","Przychody z niewykorzystanych środków pieniężnych na rachunku bieżącym budżetu, wynikających z rozliczenia dochodów i wydatków nimi finansowanych związanych ze szczególnymi zasadami wykonywania budżetu określonymi w odrębnych ustawach","§ 905",235242.27]
["13. ","Przychody wynikające z rozliczenia środków określonych w art. 5 ust.1 pkt. 2 u.f.p. i dotacji na realizację programu, projektu lub zadania finansowanego z udziałem tych środków","§ 906",236707.74]
["14.","Przelewy z rachunku lokat","§ 994"]
["15.","Prywatyzacja majątku j.s.t","§ 941 -44"]
["16.","Przychody z tytułu innych rozliczeń krajowych art. 91a ust. 1 u.f.p.","§ 955"]
["Rozchody ogółem:",null,null,{"$f":"SUM(D29:D31)","v":1452500}]
["1.","Spłaty otrzymanych kredytów krajowych, w tym:","§ 992",1452500]
["1.1","zaciągniętych w związku z zawarciem umowy z podmiotem dysponującym środkami pochodzącymi z budżetu U. E","§ 992"]
["2.","Spłaty otrzymanych pożyczek krajowych","§ 992"]
["3.","Spłaty pożyczek otrzymanych  na finansowanie zadań realizowanych z udziałem środków pochodzących z budżetu U. E","§ 963"]
["4.","Pożyczki udzielone na finansowanie zadań realizowanych z udziałem środków pochodzących z budżertu U.E.","§ 962"]
["5. ","Spłaty pożyczek i kredytów zagranicznych, w tym:","§ 993"]
["5.1","zaciągniętych w związku z zawarciem umowy z podmiotem dysponującym środkami pochodzącymi z U.E.","§ 993"]
["6.","Wykup obligacji komunalnych, których zdolność jest ograniczona, w tym:","§ 982"]
["6.1","wyemitowanych w związku z zawarciem umowy z podmiotem dysponującym środkami pochodzącymoi z budżetu U.E.","§ 982"]
["7.","Wykup papierów wartościowych dopuszczonych do obrotu zorganizowanego, czyli takie,dla których istnieje płynny rynek wtórny","§ 982"]
["8.","Wcześniejsza spłata istniejącego długu jst","§ 965"]
["9.","Udzielone pożyczki","§ 991"]
["10.","Przelewy na rachunki lokat","§ 994"]
["11.","Rozchody z tytułu innych rozliuczeń krajowych art. 91 a ust.1 u.f.p.","§ 955"]

{"sheet":"6","index":3,"n_rows":15,"n_cols":16,"rows_kept":15,"cut":false,"hidden":false,"merged":[[14,0,14,2],[0,0,0,15],[3,0,6,0],[3,1,6,1],[3,2,6,2],[3,3,6,3],[5,6,5,7],[5,8,6,8],[5,9,6,9],[5,10,6,10],[5,14,6,14],[5,15,6,15],[3,4,6,4],[3,5,3,15],[4,5,6,5],[4,6,4,10],[4,11,6,11],[5,12,6,12],[4,12,4,15]]}
["Dochody i wydatki związane z realizacją zadań z zakresu administracji rządowej i innych zadań zleconych odrębnymi ustawami w  2026 r."]
[]
[]
["Dział","Rozdział","§","Dotacje ogółem","Wydatki\nna 2026 r.","z tego:"]
[null,null,null,null,null,"Wydatki bieżące","z tego:",null,null,null,null,"Wydatki majątkowe","z tego:"]
[null,null,null,null,null,null,"Wydatki jednostek budżetowych",null,"Dotacje na zadania bieżące","Świadczenia na rzecz osób fizycznych","Wydatki na programy finansowane z udziałem środków, o których mowa w art. 5 ust. 1 pkt 2 i 3",null,"inwestycje i zakupy inwestycyjne","w tym:","zakup i objęcie akcji i udziałów","wniesienie wkładów do spółek prawa handlowego"]
[null,null,null,null,null,null,"wynagrodzenia i składki od nich naliczane","wydatki związane z realizacją statutowych zadań",null,null,null,null,null,"wydatki na programy finansowane z udziałem środków, o których mowa w art. 5 ust. 1 pkt 2 i 3"]
[1,2,3,4,5,6,7,8,9,10,11,12,13,14,15,16]
[750,75011,2010,93283,{"$f":"SUM(F9+L9)","v":93283},{"$f":"SUM(G9:K9)","v":93283},93283,null,null,null,null,{"$f":"SUM(M9+O9+P9)","v":0}]
["751","75101",2010,1076,1076,1076,1076]
["852","85228",2010,7360,7360,7360,null,7360,null,null,null,0]
["852","85295",2010,5296,5296,5296,null,5296,null,null,null,0]
[855,85502,2010,2966681,2966681,2966681,519328,null,null,2447353,null,0]
[855,85513,2010,63674,63674,63674,null,63674,null,null,null,0]
["Ogółem",null,null,{"$f":"SUM(D9:D14)","v":3137370},{"$f":"SUM(E9:E14)","v":3137370},3137370,613687,76330,0,2447353,0,0,0,0,0,0]

{"sheet":"7","index":4,"n_rows":19,"n_cols":24,"rows_kept":19,"cut":false,"hidden":false,"merged":[[2,3,2,25],[3,3,3,25],[6,1,9,1],[6,2,9,2],[18,1,18,3],[11,23,11,25],[11,21,11,22],[11,19,11,20],[11,17,11,18],[11,15,11,16],[11,13,11,14],[11,11,11,12],[11,9,11,10],[11,7,11,8],[11,5,11,6],[5,21,5,22],[5,23,5,25],[5,5,5,6],[5,7,5,8],[5,9,5,10],[5,11,5,12],[5,13,5,14],[4,15,4,16],[4,17,4,18],[4,19,4,20],[4,21,4,22],[4,23,4,25],[4,5,4,6],[4,7,4,8],[4,9,4,10],[4,11,4,12],[4,13,4,14],[6,3,9,3],[6,4,9,4],[6,5,6,6],[7,5,7,6],[8,5,8,6],[9,5,9,6],[5,15,5,16],[5,17,5,18],[5,19,5,20],[6,7,6,25],[7,7,9,8],[7,9,7,18],[7,19,9,20],[7,21,7,25],[8,9,8,12],[8,13,9,14],[8,15,9,16],[8,17,9,18],[8,21,9,22],[8,23,8,25],[9,9,9,10],[9,11,9,12],[9,23,9,25],[10,21,10,22],[10,23,10,25],[10,5,10,6],[10,7,10,8],[10,9,10,10],[10,11,10,12],[10,13,10,14],[10,15,10,16],[10,17,10,18],[10,19,10,20],[12,15,12,16],[12,17,12,18],[12,19,12,20],[12,21,12,22],[12,23,12,25],[12,5,12,6],[12,7,12,8],[12,9,12,10],[12,11,12,12],[12,13,12,14],[13,23,13,25],[14,5,14,6],[14,11,14,12],[14,13,14,14],[14,15,14,16],[14,17,14,18],[14,19,14,20],[14,21,14,22],[14,23,14,25],[13,13,13,14],[13,15,13,16],[13,17,13,18],[13,19,13,20],[13,21,13,22],[14,7,14,8],[14,9,14,10],[13,5,13,6],[13,7,13,8],[13,9,13,10],[13,11,13,12],[15,23,15,25],[16,5,16,6],[16,11,16,12],[16,13,16,14],[16,15,16,16],[16,17,16,18],[16,19,16,20],[16,21,16,22],[16,23,16,25],[15,13,15,14],[15,15,15,16],[15,17,15,18],[15,19,15,20],[15,21,15,22],[16,7,16,8],[16,9,16,10],[15,5,15,6],[15,7,15,8],[15,9,15,10],[15,11,15,12],[17,23,17,25],[17,13,17,14],[17,15,17,16],[17,17,17,18],[17,19,17,20],[17,21,17,22],[17,5,17,6],[17,7,17,8],[17,9,17,10],[17,11,17,12],[18,23,18,25],[18,5,18,6],[18,7,18,8],[18,9,18,10],[18,11,18,12],[18,13,18,14],[18,15,18,16],[18,17,18,18],[18,19,18,20],[18,21,18,22]]}
[]
[]
[null,null,null,"Dochody i wydatki związane z realizacją zadań z zakresu administracji rządowej realizowanych na podstawie porozumień"]
[null,null,null,"z organami administracji rządowej w 2026 r."]
[]
[]
[null,"Dział","Rozdział","§","Dotacje ogółem","Wydatki",null,"z tego:"]
[null,null,null,null,null,"ogółem",null,"Wydatki bieżące",null,"z tego:",null,null,null,null,null,null,null,null,null,"Wydatki majątkowe",null,"z tego:"]
[null,null,null,null,null,null,null,null,null,"Wydatki jednostek budżetowych",null,null,null,"Dotacje na zadania bieżące",null,"Świadczenia na rzecz osób fizycznych",null,"Wydatki na programy finansowane z udziałem środków, o których mowa w art. 5 ust. 1 pkt 2 i 3",null,null,null,"inwestycje i zakupy inwestycyjne",null,"w tym:"]
[null,null,null,null,null,null,null,null,null,"wynagrodzenia i składki od nich naliczane",null,"wydatki związane z realizacją statutowych zadań",null,null,null,null,null,null,null,null,null,null,null,"wydatki na programy finansowane z udziałem środków, o których mowa w art. 5 ust. 1 pkt 2 i 3"]
[null,1,2,3,4,5,null,6,null,7,null,8,null,9,null,10,null,11,null,12,null,13,null,14]
[null,710,71035,2020,20000,20000,null,{"$f":"SUM(J12:S12)","v":20000},null,null,null,20000]
[]
[]
[]
[]
[]
[]
[null,"Ogółem",null,null,{"$f":"SUM(E12:E18)","v":20000},{"$f":"SUM(F12:G18)","v":20000},null,{"$f":"SUM(H12:I18)","v":20000},null,null,null,{"$f":"SUM(L12:M18)","v":20000}]

{"sheet":"8","index":5,"n_rows":15,"n_cols":21,"rows_kept":15,"cut":false,"hidden":false,"merged":[[3,13,5,13],[3,17,4,17],[3,18,5,18],[3,20,4,20],[1,0,5,0],[1,1,5,1],[1,2,5,2],[1,7,1,20],[2,8,2,14],[2,15,5,15],[2,16,2,20],[3,8,4,9],[1,5,5,5],[1,6,5,6],[2,7,5,7],[3,10,5,10],[3,11,5,11],[3,12,5,12],[12,0,12,3],[10,0,10,3],[11,3,11,4],[11,5,11,6],[11,7,11,8],[7,0,7,3],[1,3,5,3],[1,4,5,4]]}
["                                                                            Dochody i wydatki związane z realizacją zadań realizowanych na podstawie porozumień (umów) między jednostkami samorządu terytorialnego w 2026 r."]
["Nazwa zadania","Dział","Rozdział","§","Dochody ogółem ","Wydatki ogółem","§ ","z tego:"]
[null,null,null,null,null,null,null,"Wydatki bieżące","z tego:",null,null,null,null,null,null,"Wydatki majątkowe","z tego:"]
[null,null,null,null,null,null,null,null,"Wydatki jednostek budżetowych",null,"Dotacje na zadania bieżące","Świadczenia na rzecz osób fizycznych","Wydatki na programy finansowane z udziałem środków, o których mowa w art. 5 ust. 1 pkt 2 i 3","Wydatki na obsługę długu ","Wydatki",null,"Inwestycje","w tym:","zakup i objęcie akcji i udziałów","wniesienie wkładów"]
[null,null,null,null,null,null,null,null,null,null,null,null,null,null,"z tytułu poręczeń",null," i zakupy inwestycyjne",null,null," do spółek prawa handlowego"]
[null,null,null,null,null,null,null,null,"wynagrodzenia i składki od nich naliczane","wydatki związane z realizacją statutowych zadań",null,null,null,null,"i gwarancji",null,null,"wydatki na programy finansowane z udziałem środków,"]
[1,2,3,4,5,6,7,8,9,10,11,12,13,14,15,16,17,18,19,20]
["I. Dochody i wydatki związane z realizacją zadań realizowanych wspólnie z innymi jednostkami samorządu terytorialnego",null,null,null,null,{"$f":"SUM(F9:F10)","v":113000},{"$f":"SUM(G9:G10)","v":0},53000,0,0,53000,0,0,0,0,60000,60000,0,0,0,0]
["Dopłata do wozokilometra dla ZTM Kielce",600,60004,2310,null,53000,null,53000,null,null,53000]
["Wzmocnienie potencjału gmin Związku Gmin Gór Świętokrzyskich w zakresie rekreacyjno-sportowej poprzez zagospodarowanie poludniowej strony zbiornika Jaśle",630,63095,6650,null,60000,null,null,null,null,null,null,null,null,null,60000,60000]
["II. Dochody i wydatki związane z realizacją zadań przejętych przez Gminę do realizacji w drodze umowy lub porozumienia",null,null,null,null,0,0,0,0,0,0,0,0,0,0,0,0,0,0,0,{"$f":"SUM(#REF!)","v":{"$error":"#REF!"}}]
[]
["III. Dochody i wydatki związane z pomocą rzeczową lub finansową realizowaną na podstawie porozumień między j.s.t.",null,null,null,null,{"$f":"SUM(F14:F14)","v":0},0,0,0,0,0,0,0,0,0,0,0,0,0,0]
[]
["Ogółem",null,null,null,null,{"$f":"SUM(F8+F11+F13)","v":113000},0,53000,0,0,53000,0,0,0,0,60000,60000,0,0,0]

{"sheet":"9","index":6,"n_rows":18,"n_cols":11,"rows_kept":18,"cut":false,"hidden":false,"merged":[[2,0,3,0],[2,1,3,1],[2,2,2,5],[2,6,2,10],[7,1,8,1],[7,0,8,0],[7,2,8,2],[7,3,8,3],[7,4,8,4],[7,5,8,5]]}
[null,"                    Dochody i wydatki związane ze szczególnymi zasadami wykonywania budżetu wynikającymi z odrębnych ustaw w 2026 r."]
[]
["L.p.","Wyszczególnienie","Dochody",null,null,null,"Wydatki"]
[null,null,"Dział","Rozdział","§","Kwota","Dział","Rozdział","§","Kwota","w tym finansowane przychodami w  § 905"]
[1,2,3,4,5,6,7,8,9,10,11]
["1.","Dochody z tytułu opłat za gospodarowanie odpadami komunalnymi oraz wydatki na cele związane z pokrywaniem kosztów funkcjonowania systemu gospodarowania odpadami komunalnymi",900,90002,"0490",1100000,900,90002,null,1279087.08,179087.08]
[null,null,null,null,null,{"$f":"SUM(F6)","v":1100000},null,null,null,{"$f":"SUM(J6)","v":1279087.08},{"$f":"SUM(K6)","v":179087.08}]
["2.","Dochody z tytułu wydawania zezwoleń na sprzedaż napojów alkoholowych oraz wydatki na realizację zadań określonych w programie profilaktyki i rozwiązywania problemów alkoholowych oraz programie przeciwdziałania narkomanii","756","75618","0480",66500,851,85154,null,121655.19,56155.19]
[null,null,null,null,null,null,851,85153,null,1000]
[null,null,null,null,null,{"$f":"SUM(F8:F9)","v":66500},null,null,null,{"$f":"SUM(J8:J9)","v":122655.19},{"$f":"SUM(K8:K9)","v":56155.19}]
["3.","Dochody z tytułu dodatkowej opłaty za wydawane zezwolenia na sprzedaż napojów alkoholowych w opakowaniach nieprzekraczających 300 ml oraz wydatki z przeznaczeniem na działania mające na celu realizację lokalnej międzysektorowej polityki przeciwdziałania negatywnym skutkom spożywania alkoholu"]
[null,null,null,null,null,{"$f":"SUM(F11)","v":0},null,null,null,{"$f":"SUM(J11)","v":0}]
["4.","Dochody z tytułu opłat za korzystanie ze środowiska i administracyjnych kar pieniężnych oraz wydatki na finansowanie systemu ochrony środowiska","900","90019","069",5000,"900","90019",null,5000]
[null,null,null,null,null,{"$f":"SUM(F13)","v":5000},null,null,null,{"$f":"SUM(J13)","v":5000}]
["5. ","Dochody z tytułu opłat za korzystanie z przystanków komunikacyjnych lub dworców oraz wydatki na utrzymanie przystanków, dworców i realizację zadań w zakresie publicznego transportu zbiorowego","600","60020","049",3000,"600","60020",null,3000]
[null,null,null,null,null,{"$f":"SUM(F15)","v":3000},null,null,null,{"$f":"SUM(J15)","v":3000}]
[]
[null,null,null,null,null,null,null,null,null,"Razem",{"$f":"SUM(K7+K10+K12+K14+K16)","v":235242.27}]

{"sheet":"10","index":7,"n_rows":14,"n_cols":12,"rows_kept":14,"cut":false,"hidden":false,"merged":[[0,0,0,11],[1,0,1,11],[4,0,7,0],[4,1,7,1],[4,2,7,2],[4,9,4,11],[5,9,7,9],[5,10,5,11],[6,11,7,11],[6,8,7,8],[6,10,7,10],[13,0,13,1],[5,4,7,4],[5,5,5,8],[4,3,7,3],[6,6,7,6],[4,4,4,8],[6,5,7,5],[6,7,7,7]]}
["Plan przychodów i kosztów samorządowych zakładów budżetowych na 2026 r."]
[]
[]
[null,null,null,null,null,null,null,null,null,null,null,"w złotych"]
["Lp.","Wyszczególnienie","Dział","Rozdział","Przychody",null,null,null,null,"Koszty"]
[null,null,null,null,"ogółem","w tym: dotacja\nz budżetu",null,null,null,"ogółem","w tym: "]
[null,null,null,null,null,"przedmiotowa","na pierwsze wyposażenie","celowa na zadania realizowane z udziałem środków UE","celowa na inwestycje",null,"wpłata do budżetu"," majątkowe"]
[]
[1,2,3,4,6,7,9,10,11,12,13,14]
[1,"Dostarczanie wody",400,40002,1400000,null,null,null,null,547000]
[2,"Zimowe utrzymanie dróg gminnych",600,60016,300000,300000,null,null,null,220000]
[3,"Gospodarka ściekowa i ochrona wód",900,90001,1060700,null,null,null,null,464000]
[4,"Zakład Gospodarki Komunalnej",900,90017,450000,null,null,null,null,1979700]
["Ogółem",null,null,null,{"$f":"SUM(E10:E13)","v":3210700},300000,0,0,0,3210700,null,{"$f":"SUM(L10:L13)","v":0}]

{"sheet":"11","index":8,"n_rows":11,"n_cols":6,"rows_kept":11,"cut":false,"hidden":false,"merged":[[0,0,0,5],[1,0,1,5],[10,0,10,1]]}
[" Plan dochodów gromadzonych na wydzielonym rachunku jednostki budżetowej  wydatki nimi finansowane w 2026 r."]
[]
[]
[null,null,null,null,null,"w złotych"]
["Lp.","Wyszczególnienie","Dział","Rozdział","Dochody","Wydatki"]
[1,2,3,4,6,7]
["1.","Zespół Szkolno Przedszkolny                      w Łącznej",801,80101,234950,234950]
["2.","Zespół Szkolno Przedszkolny                         w Łącznej",801,80104,177840,177840]
["3.","Zespół Szkół w Goździe",801,80101,65400,65400]
["4.","Zespół Szkół w Goździe",801,80104,70000,70000]
["Ogółem",null,null,null,{"$f":"SUM(E7:E10)","v":548190},{"$f":"SUM(F7:F10)","v":548190}]

{"sheet":"12","index":9,"n_rows":9,"n_cols":7,"rows_kept":9,"cut":false,"hidden":false,"merged":[[1,0,1,6],[8,0,8,4]]}
[]
["Dotacje przedmiotowe w 2026 roku"]
[null,null,null,null,null,null,"w złotych"]
["Lp.","Dział","Rozdział","§","Nazwa jednostki otrzymującej dotacje","Zakres"," Ogółem kwota dotacji"]
[1,2,3,null,4,5,6]
["I. Dotacje  dla jednostek  sektora finansów publicznych",null,null,null,null,null,{"$f":"SUM(G9)","v":300000}]
[1,600,60016,2650,"Zakład Gospodarki Komunalnej w Łącznej","dopłata do odśnieżania 1 km drogi",300000]
["II. Dotacje dla jednostek spoza sektora finansów publicznych"]
["Ogółem",null,null,null,null,null,{"$f":"SUM(G7:G8)","v":300000}]

{"sheet":"13","index":10,"n_rows":10,"n_cols":6,"rows_kept":10,"cut":false,"hidden":false,"merged":[[2,0,2,5],[9,0,9,4]]}
[]
[]
["Dotacje podmiotowe w 2026 roku"]
[null,null,null,null,null,"w złotych"]
["Lp.","Dział","Rozdział","§","Nazwa jednostki otrzymującej dotacje","Kwota dotacji"]
[1,2,3,null,4,5]
["I. Dotacje  dla jednostek  sektora finansów publicznych",null,null,null,null,{"$f":"SUM(F8)","v":645000}]
["1.",921,92116,2480,"Gminna Instytucja kultury - biblioteka gminna w Łącznej",645000]
["II.Dotacje dla jednostek spoza sektora finansów publicznych"]
["Ogółem",null,null,null,null,{"$f":"SUM(F8:F9)","v":645000}]

{"sheet":"14","index":11,"n_rows":10,"n_cols":7,"rows_kept":10,"cut":false,"hidden":false,"merged":[[9,0,9,4],[1,0,1,6]]}
[]
["Dotacje celowe w 2026 roku"]
[null,null,null,null,null,null,"w złotych"]
["Lp.","Dział","Rozdział","§","Nazwa zadania","Jednostka otrzymująca dotację","Kwota dotacji"]
[1,2,3,4,5,6,7]
["                                                                                                 I. Dotacje  dla jednostek  sektora finansów publicznych",null,null,null,null,null,{"$f":"SUM(G7:G7)","v":53000}]
[1,600,60004,2310,"Zadanie własne j.s.t w zakresie prowadzenia lokalnego transportu zbiorowego na terenie gminy Łączna","Gmina Kielce",53000]
["II. Dotacje dla jednostek spoza sektora finansów publicznych",null,null,null,null,null,{"$f":"SUM(G9:G9)","v":70000}]
[4,926,92605,2830,"Zadania z zakresu kultury fizycznej i sportu","wyłoniona w drodze konkursu",70000]
["Ogółem",null,null,null,null,null,{"$f":"SUM(G6+G8)","v":123000}]